Cogmind - Beta 14 @@@ ROGUE MODE // 2024.11.08 @ 20:11:40 Player: OctagonalPrism Result: Destroyed by D-53 Grenadier with Mini Grenade Launcher Performance ------------- Evolutions (0) 0 Regions Visited (2) 400 Robots Destroyed (27) 135 Value Destroyed (697) 697 Prototype IDs (2) 40 Alien Tech Used (0) 0 Bonus (16) 16 TOTAL SCORE: 1288 Bonus ------- High Alert Combat Kills 16 Cogmind --------- Core Integrity 0/250 Matter 296/300 Energy 100/100 System Corruption 0% Temperature Cool (24) Movement Core (700) Ox13 Location -10/Mines Parts ------- > --- POWER (1) -------- (None) > --- PROPULSION (2) --- Light Treads > --- UTILITY (2) ------ High-capacity Storage Unit > --- WEAPON (2) ------- Medium Laser > --- INVENTORY (20) --- Improved Terrain Scanner Hacking Suite EM Pulse Gun Grenade Launcher Datajack Mining Laser Peak State ------------ > --- POWER ------------ Ion Engine > --- PROPULSION ------- Light Treads Compact Wheel > --- UTILITY ---------- Improved Heat Sink Small Storage Unit > --- WEAPON ----------- Small Laser Particle Gun > --- INVENTORY -------- Light Treads Wheel Wheel Improved Terrain Scanner Hacking Suite EM Pulse Gun Grenade Launcher [Rating: 11] Favorites ----------- Power Ion Engine Engine Ion Engine Propulsion Light Treads Treads Light Treads Wheel Compact Wheel Utility Improved Heat Sink Device Improved Heat Sink Storage Small Storage Unit Weapon Medium Laser Energy Gun Medium Laser Special Melee Weapon Datajack Build | -11 -10 -10 ------- Run | Yrd Mat Min Slots Evolved . | . . . Power . | . . . Propulsion . | . . . Utility . | . . . Weapon . | . . . Parts Attached 28 | 7 16 5 Power 2 | 1 1 . Engine 2 | 1 1 . Core . | . . . Reactor . | . . . Propulsion 7 | 2 2 3 Treads 3 | 1 1 1 Leg . | . . . Wheel 4 | 1 1 2 Hover . | . . . Flight . | . . . Utility 7 | 2 3 2 Device 5 | 1 2 2 Storage 2 | 1 1 . Processor . | . . . Hackware . | . . . Protection . | . . . Artifact . | . . . Weapon 12 | 2 10 . Energy Gun 9 | 2 7 . Energy Cannon . | . . . Ballistic Gun . | . . . Ballistic Cannon . | . . . Launcher . | . . . Special Weapon . | . . . Impact Weapon . | . . . Slashing Weapon . | . . . Piercing Weapon . | . . . Special Melee Weapon 3 | . 3 . Unidentified Prototypes . | . . . Parts Lost 10 | . 3 7 Power 2 | . 1 1 Propulsion 4 | . . 4 Utility 2 | . 1 1 Weapon 2 | . 1 1 Highest Loss Streak 4 | . 3 4 To Critical Strikes . | . . . Average Slot Usage (%) 97 | . 97 98 Engine 12 | . 12 14 Treads 13 | . 14 12 Wheel 14 | . 14 14 Device 13 | . 13 14 Storage 14 | . 14 14 Energy Gun 26 | . 26 28 Special Melee Weapon 1 | . 1 . Peak Build Rating 11 | 9 11 11 Average Rating 9 | 4 10 10 On Entrance 6 | . 9 11 Naked Turns . | . . . Heaviest Build 51 | 15 51 51 Greatest Support 20 | 20 20 16 Greatest Overweight (x) 5 | . 3 5 Average Overweight (x) 1 | . . 3 Largest Inventory Capacity 20 | 8 20 20 Average Capacity 12 | 6 11 20 Most Carried 9 | 5 9 9 Average Carried 7 | 2 7 8 Final Capacity 20 | 8 20 20 Final Carried 9 | 4 9 6 Class Distribution -------------------- 94% | Mutant 5% | Scavenger-Mutant Dominant Class ---------------- Mutant | -10/Materials Mutant | -10/Mines Resources | -11 -10 -10 ----------- Run | Yrd Mat Min Matter Collected 480 | 228 160 92 Remotely . | . . . Salvage Created 922 | 12 775 135 Parts 52 | 5 44 3 Haulers Intercepted 2 | . 2 . Recyclers Shooed . | . . . Parts Field Recycled . | . . . Retrieved Matter . | . . . Parts Self-Destructed . | . . . Prevented . | . . . Kills | -11 -10 -10 ------- Run | Yrd Mat Min Combat Hostiles Destroyed 18 | . 15 3 Guns 17 | . 14 3 Classes Destroyed 7 | 1 6 . Worker 1 | . 1 . Tunneler 1 | 1 . . Hauler 2 | . 2 . Operator 2 | . 2 . Watcher 3 | . 3 . Swarmer 3 | . 3 . Grunt 15 | . 12 3 Best Kill Streak 5 | 1 5 2 Combat Bots Only 4 | . 4 2 Max Kills in Single Turn 2 | 1 1 2 Gunslinging 1 | . . 1 Exploded . | . . . Melee . | . . . Uniques/NPCs Destroyed . | . . . Combat | -11 -10 -10 -------- Run | Yrd Mat Min Hostile Shots Fired 109 | . 79 30 Missed 29 | . 22 7 Damage Taken 1155 | . 646 509 Core 258 | . 129 129 Absorbed by Shields . | . . . Regen/Repaired (Parts) 62 | . 62 . Core Remaining (%) 100 | 100 . . Volleys Fired 87 | 1 72 14 Largest 2 | 2 2 2 Hottest 115 | 90 115 115 Shots Fired 166 | 2 136 28 Gun 166 | 2 136 28 Cannon . | . . . Launcher . | . . . Special . | . . . Kinetic . | . . . Thermal 161 | 1 132 28 Explosive . | . . . Electromagnetic 5 | 1 4 . Robot Hit Streak 11 | 1 11 5 Robot Miss Streak 6 | . 6 1 Penetration Max . | . . . Secondary Targets 3 | . 2 1 Max Gunslinging Chain 1 | . 1 1 Shots Hit Robots 114 | 1 92 21 Core Hits 49 | 1 40 8 Critical Kills . | . . . Critical Parts Destroyed . | . . . Critical Strikes 8 | . 7 1 Burn 6 | . 5 1 Corrupt 2 | . 2 . Melee Attacks . | . . . Impact . | . . . Slashing . | . . . Piercing . | . . . Sneak Attacks . | . . . Combat Hostiles . | . . . Follow-up Attacks . | . . . Damage Inflicted 1450 | 12 1126 312 Guns 1450 | 12 1126 312 Cannons . | . . . Explosions . | . . . Melee . | . . . Ramming . | . . . Kinetic . | . . . Thermal 1398 | . 1086 312 Explosive . | . . . Electromagnetic 52 | 12 40 . Impact . | . . . Slashing . | . . . Piercing . | . . . Highest Corruption . | . . . Average Corruption . | . . . Corruption Purged . | . . . Corruption Blocked . | . . . Overload Shots . | . . . Overflow Damage . | . . . Projectiles . | . . . Explosions . | . . . Melee . | . . . Knockbacks . | . . . Impact . | . . . Kinetic . | . . . Secondary . | . . . Self-Inflicted Damage . | . . . Shots . | . . . Rammed . | . . . Targets Rammed . | . . . Kicked . | . . . Crushed . | . . . Highest Temperature 397 | 30 145 397 Average Temperature 72 | 17 40 142 Received Heat Transfer 444 | . 318 126 Effects 2 | . . 2 Shutdowns 1 | . . 1 Matter Decay 1 | . . 1 Siege Activations . | . . . Robots Corrupted . | . . . Combat Hostiles . | . . . Parts Fried . | . . . Impact Corruptions . | . . . Robots Melted 2 | . 2 . Combat Hostiles 1 | . 1 . Parts Melted 6 | . 4 2 Heat Transferred 4010 | . 3159 851 Parts Sabotaged . | . . . Parts Stolen . | . . . Parts Stripped . | . . . Power Chain Reactions . | . . . Alert | -11 -10 -10 ------- Run | Yrd Mat Min Peak Influence 479 | 5 479 182 Initial 117 | . 3 117 Average 239 | 1 271 165 Maximum Alert Level 2 | . 2 . Low Security (%) 33 | 100 14 100 Level 1 61 | . 79 . Level 2 4 | . 6 . Level 3 . | . . . Level 4 . | . . . Level 5 . | . . . High Security . | . . . Max Security . | . . . Squads Dispatched 3 | . 3 . Investigation 1 | . 1 . Extermination . | . . . Reinforcement 2 | . 2 . Assault . | . . . Garrison . | . . . Intercept . | . . . Searches Triggered . | . . . Construction Impeded . | . . . Haulers Reinforced . | . . . Active Scanning Responses . | . . . Cargo Convoy Interrupts . | . . . Stealth | -11 -10 -10 --------- Run | Yrd Mat Min Distress Signals 4 | . 3 1 Communications Jammed . | . . . Distress Signals . | . . . Times Spotted 35 | . 29 6 Peak Tracking Total 5 | . 5 2 Tactical Retreats 4 | . 3 1 Traps | -11 -10 -10 ------- Run | Yrd Mat Min Traps Triggered . | . . . Indirectly . | . . . Trap Hack Attempts 48 | . 48 . Triggered . | . . . Disarmed 1 | . 1 . Reprogrammed 6 | . 6 . Reused 2 | . 2 . Traps Extracted . | . . . Installed . | . . . Triggered 2 | . 2 . Machines | -11 -10 -10 ---------- Run | Yrd Mat Min Machines Disabled . | . . . Max in Single Turn . | . . . Machines Repaired . | . . . Machines Dismantled . | . . . Machines Sabotaged . | . . . Overloaded Fab Kills . | . . . Hacking | -11 -10 -10 --------- Run | Yrd Mat Min Machines Accessed 7 | . 7 . Terminals 5 | . 5 . Fabricators . | . . . Repair Stations 1 | . 1 . Recycling Units 1 | . 1 . Scanalyzers . | . . . Garrison Access . | . . . Total Hacks 23 | . 23 . Successful 15 | . 15 . Failed 8 | . 8 . Catastrophic . | . . . Database Lockouts . | . . . Manual 13 | . 13 . Terminals 20 | . 20 . Fabricators . | . . . Repair Stations 2 | . 2 . Recycling Units 1 | . 1 . Scanalyzers . | . . . Garrison Access . | . . . Terminal Hacks 7 | . 7 . Part Schematic 1 | . 1 . Robot Analysis 2 | . 2 . Prototype ID Bank 1 | . 1 . Terminal Index 1 | . 1 . Alert Level 1 | . 1 . Locate Traps 1 | . 1 . Fabricator Hacks . | . . . Repair Station Hacks 2 | . 2 . Scan Component 1 | . 1 . Repair 1 | . 1 . Recycling Unit Hacks . | . . . Scanalyzer . | . . . Garrison Access Hacks . | . . . Unauthorized Hacks 6 | . 6 . Terminals 5 | . 5 . Assimilate 1 | . 1 . Botnet 3 | . 3 . Operators 1 | . 1 . Fabricators . | . . . Repair Stations . | . . . Recycling Units 1 | . 1 . Tunnel 1 | . 1 . Scanalyzers . | . . . Garrison Access . | . . . Data Cores Recovered . | . . . Used . | . . . Hacking Detections 5 | . 5 . Full Trace Events . | . . . Feedback Events . | . . . Feedback Blocked . | . . . Robot Schematics Acquired . | . . . Robots Built . | . . . Authchips . | . . . Time . | . . . Total Robot Build Rating . | . . . Part Schematics Acquired 1 | . 1 . Parts Built . | . . . Authchips . | . . . Time . | . . . Total Part Build Rating . | . . . Parts Repaired 1 | . 1 . Time 26 | . 26 . Parts Recycled . | . . . Recycled Matter . | . . . Retrieved Matter . | . . . Retrieved Components . | . . . Parts Scanalyzed . | . . . Part Schematics Acquired . | . . . Parts Damaged . | . . . Bothacking | -11 -10 -10 ------------ Run | Yrd Mat Min Used RIF Installer . | . . . Robots Hacked . | . . . Non-combat . | . . . Combat . | . . . Robot Hacks Applied . | . . . Relay Couplers Released . | . . . Fabnet Peak Effective % . | . . . Robots Rewired . | . . . Allies Hacked . | . . . Hacks Repelled . | . . . Allies | -11 -10 -10 -------- Run | Yrd Mat Min Total Allies . | . . . Largest Group . | . . . Highest-Rated Group . | . . . Highest-Rated Ally . | . . . Total Orders . | . . . Ally Attacks . | . . . Total Damage . | . . . Kills . | . . . Allies Corrupted . | . . . Allies Melted . | . . . Intel | -11 -10 -10 ------- Run | Yrd Mat Min Robot Analysis Total 2 | . 2 . Derelict Logs Recovered 3 | . . 3 Drone Launches . | . . . Drone Recoveries . | . . . Exploration | -11 -10 -10 ------------- Run | Yrd Mat Min Turns Passed 1451 | 65 1122 264 Spaces Moved 705 | 46 519 140 Core 2 | 2 . . Treads 258 | 4 254 . Legs . | . . . Wheels 445 | 40 265 140 Hover . | . . . Flight . | . . . Fastest Speed 50 | 50 100 145 Average Speed 141 | 103 143 146 Slowest Speed 160 | 160 160 155 Overloaded Moves . | . . . Propulsion Burnouts . | . . . Robots Hopped . | . . . Cave-ins Triggered . | . . . Exploration Rate (%) 38 | 3 83 30 Regions Visited 2 Branch Regions 1 Pre-discovered Areas 3 | . 1 2 Known Exits Taken . | . . . Unknown Exits Taken 2 | 1 1 . Scrap Searched . | . . . Spaces Dug . | . . . Terrain Destroyed . | . . . Melee . | . . . Projectile . | . . . AOE . | . . . Terrain Rammed . | . . . Walls Destroyed . | . . . Machines Disabled . | . . . Actions | -11 -10 -10 --------- Run | Yrd Mat Min Total 982 | 58 754 170 Wait 99 | . 88 11 Move 703 | 45 518 140 Hop . | . . . Pick Up 11 | 5 6 . Fast Attach 10 | 6 4 . Attach 5 | 1 1 3 Detach 1 | . 1 . Swap 13 | . 11 2 Drop 5 | . 5 . Fire 87 | 1 72 14 Melee . | . . . Ram . | . . . Kick . | . . . Crush . | . . . Escape Stasis . | . . . Rewire . | . . . Trap 48 | . 48 . Miscellaneous . | . . . Route ------- -11/Scrapyard -10/Materials (discovered 3 exits: [*Mat x2] / [*Min]) -10/Mines (discovered 2 exits: [*Mat x2]) History --------- Turn | Location | Event 21 | -11/Scrapyard | Discovered new exit (range 16) 66 | -11/Scrapyard | Entered Materials 316 | -10/Materials | Build established: Mutant 499 | -10/Materials | Discovered new exit (range 13) 548 | -10/Materials | Core integrity fell below 50% 576 | -10/Materials | Lost 3 parts (1p1u1w) 798 | -10/Materials | Repaired Sml. Laser 811 | -10/Materials | Discovered new exit (range 5) 1021 | -10/Materials | Discovered new exit (range 10) 1188 | -10/Materials | Entered Mines 1206 | -10/Mines | Met a Derelict bent on vengeance 1239 | -10/Mines | Learned location of Storage (-8) 1267 | -10/Mines | Learned 2 Materials zone layouts 1273 | -10/Mines | Discovered new exit (range 10) 1304 | -10/Mines | Learned location of Zion (-7) 1366 | -10/Mines | Learned 2 Materials zone layouts 1432 | -10/Mines | Lost 3 parts (3n) 1443 | -10/Mines | Assembled infested the area 1443 | -10/Mines | Discovered new exit (range 7) 1447 | -10/Mines | Core integrity fell below 20% 1452 | -10/Mines | Destroyed by D-53 Grenadier with Mini Grenade Launcher Last Messages --------------- 01366_ Acquired derelict log, extracted data. Data stored: Materials zone layouts (x2). 01386_ Lgt. Treads destroyed. 01389_ Com. Wheel destroyed. 01403_ Power failure, Ion Engine shutdown. 01403_ G-47 Trooper destroyed. 01407_ Overheating: Matter decay (-39). 01426_ Acquired 50 matter. 01443_ ALERT: Infestation in the mines, dispatching Demolisher response squad. 01443_ EXIT=FOUND 01446_ C-30 ARC bursts open, deploying its payload. 01446_ D-53 Grenadier unfolds itself. 01446_ Seismic Survey Station disabled. 01449_ D-53 Grenadier suffers critical hit (Burn). 01450_ The unstable cave ceiling collapses. 01452_ Particle Gun destroyed. 01452_ Imp. Heat Sink destroyed. 01452_ Wheel destroyed. 01452_ Ion Engine destroyed. Map ----- +----------------------------------------------------+ | | | | | | | | | | | | | | | | | | | | | ?????????????????????????????????????????????????? | | ???????????????????????????????????????#?????????? | | ??????????????????????????????????????????#?????## | | ??????????????????????????????????????????????#?# | | ?????????????????????????????#???#?????????###??# | | ??????????????????????????????????????????????#?# | | ??????????????????#######?#####?????????????#???#" | | ???????????????#### ?? #????###??????#???#" | | ???????????????? ?? #??#???????#??????#" | | ????????????????? ??# #??#???????????#??# | | ??????????????????# ### #????????????????### | | ??????????????????# < #???#????????##???## | | ???????????????????# #??????#???????????# | | ????????????????????## ###???????#???#????# | | ???????????????????## d #????????????????# | | ???????????????????# % @ #?????????#??#??## | | ???????????????????# d #############????# | | ???????????????????# "" = #?#??# | | ???????????????????# "" ########### #????# | | ???????????????????# # """ #?????????# #????# | | ?????????????????? ###########?????????# #????# | | ????????????????? ????????????#???????## ##???# | | ???????????????? ##??????????#??????????## ##### | | ??????????????=%=????????????????????#???# < | | ????????????? *?????????????????????????# #### | | ?????????????? ??????????????????????????# #??# | | ????????????????????????????????????????## ##??# | | ?????????????????????????????????????????# #???# | | ?????????????????????????????????#??#???## ##### | | ????????????????????????????????????????# | | ????????????????????????????????????????# | | ????????????????????????????????????????## | | ??????????????????????????????????????##?## #### | | ??????????????????????????????????????????## ##??? | | ???????????????????????????????????????????# #???? | | ??????????????????????????????????#??####### ####? | | ???????????????????????????????????# #? | | ?????????????????????????????? ## #? | | ?????????????????????????????? ########??#? | | ??????????????????????????????? ????????????????? | +----------------------------------------------------+ Best States ------------- Heat Dissipation 39 Energy Generation 10 Energy Capacity 250 Matter Stores 300 Matter Capacity 300 Sight Range 16 Terrain Scan Range 16 Terrain Scan Density 10 Evasion (%) 40 Recoil Reduction 1 Item Schematics ----------------- Hcp. Storage Unit | -10/Materials | Hacked Robot Schematics ------------------ None Fabricated ------------ Nothing Alien Tech Used ----------------- None Achievements -------------- None Challenges ------------ None Game ------ Seed EfficiencyImpactSink Manual? 0 Play Time 00:13:02 Cumulative 180.4 hours Start 2024.11.08 @ 20:00:28 End 2024.11.08 @ 20:11:40 Sessions 1 Manual Loads 0 Difficulty Rogue Special Mode None Game No. 144 Rogue 144 Adventurer 0 Explorer 0 Win Type - Total 4 Types 2/0/1/1/0/0/0/0/0 Lore% 62 Gallery% 66 Achievement% 52 Wizard Run 0 Options --------- Layout 2 ASCII 0 Keyboard 0 Movement Numpad Keybinds 0 Fullscreen 1 Font 16/Terminus Map View 55x47 Zoom Use 0% Tactical HUD 1 Map Filters NONE Filters NONE Steam 1 RUN: b9c6f2d8-d792-4833-935c-40684deed75a